bitfinex/quotes_ETHUSD_20250605
["timestamp","ask_amount","ask_price","bid_price","bid_amount"]
[1749090390153,1.87919803,2609.9,2609.8,32.062]
[1749090398497,1.87919803,2609.9,2609.8,24.258]
[1749090398712,1.4046985,2609.9,2609.8,32.062]
[1749090399729,0.0095985,2609.9,2609.8,32.062]
[1749090402378,1.3407985,2609.9,2609.8,32.062]
[1749090404986,0.0095985,2609.9,2609.8,32.062]
[1749090405620,0.0095985,2609.9,2609.8,24.42962434]
[1749090411322,0.0095985,2609.9,2609.8,18.22362434]
[1749090411523,0.0095985,2609.9,2609.8,24.42862434]
[1749090416172,0.0006088,2609.9,2609.8,24.42862434]
[1749090420785,0.0006088,2609.9,2609.8,24.42762434]
[1749090421689,0.0006088,2609.9,2609.8,16.62562434]
[1749090421887,0.0006088,2609.9,2609.8,24.42762434]
[1749090422268,3.34090557,2609.9,2609.8,18.22362434]
[1749090422455,5.63989613,2609.9,2609.8,9.857]
[1749090422872,5.63989613,2609.9,2609.8,16.061]
[1749090423256,5.63989613,2609.9,2609.8,9.857]
[1749090423589,5.63989613,2609.9,2609.8,16.061]
[1749090424157,5.63989613,2609.9,2609.8,9.857]
[1749090424360,5.63989613,2609.9,2609.8,16.061]
[1749090424654,2.29959936,2609.9,2609.8,16.061]
[1749090424860,5.63989613,2609.9,2609.8,16.061]
[1749090434746,5.08989613,2609.9,2609.8,16.061]
[1749090440375,0.33409056,2609.9,2609.8,16.061]
[1749090440584,1.3181,2610.1,2609.8,16.061]
[1749090440737,4.65839677,2610.1,2609.8,16.061]
[1749090445572,3.34029677,2610.1,2609.8,16.061]
[1749090445774,5.29939677,2610.3,2609.8,16.061]
[1749090445944,4.74939677,2610.3,2609.8,16.061]
[1749090446147,5.22433645,2610.3,2609.8,16.061]
[1749090449339,5.22433645,2610.3,2609.8,9.857]
[1749090449543,3.34029677,2610.1,2609.9,6.204]
[1749090451682,5.22433645,2610.3,2609.9,6.204]
[1749090451974,3.34029677,2610.3,2609.9,6.204]
[1749090453081,1.2738,2610.5,2609.9,6.204]
[1749090453284,3.34029677,2610.5,2609.9,6.204]
[1749090454766,0.55,2610.6,2610.0,1.597]
[1749090455081,3.34029677,2610.4,2610.1,1.597]
[1749090455281,3.34029677,2610.4,2610.2,9.856]
[1749090455474,3.34029677,2610.4,2610.3,1.597]
[1749090455678,3.67432645,2610.4,2610.3,1.597]
[1749090456087,3.67432645,2610.4,2610.3,7.8]
[1749090457288,0.02,2609.9,2609.3,24.777875]
[1749090457784,0.02,2609.9,2609.3,24.519372]
[1749090458449,0.02,2609.9,2609.5,20.331139]
[1749090458708,0.02,2609.9,2609.5,10.331139]
[1749090459347,0.02,2609.9,2609.5,9.102079]
[1749090460286,0.02,2609.9,2609.7,40.0]
[1749090460486,0.02,2609.9,2609.8,3.34029677]
[1749090460675,0.00127386,2609.9,2609.8,26.18335977]
[1749090460873,0.00127386,2609.9,2609.8,18.70044577]
[1749090461171,0.00127386,2609.9,2609.7,16.223107]
[1749090461485,0.00127386,2609.9,2609.7,13.889737]
[1749090461788,0.00127386,2609.9,2609.8,10.0]
[1749090462106,0.00127386,2609.9,2609.7,16.88494]
[1749090462388,0.00127386,2609.9,2609.8,11.91371]
[1749090462612,0.00127386,2609.9,2609.7,12.335124]
[1749090463480,0.00127386,2609.9,2609.7,8.878865]
[1749090463680,0.00127386,2609.9,2609.8,10.0]
[1749090463886,0.00127386,2609.9,2609.7,16.068051]
[1749090464087,0.00127386,2609.9,2609.8,10.0]
[1749090465009,0.00127386,2609.9,2609.6,3.34029677]
[1749090465181,0.00127386,2609.9,2609.8,10.0]
[1749090465386,0.00127386,2609.9,2609.8,9.854]
[1749090465912,0.00127386,2609.9,2609.8,25.601361]
[1749090467009,0.00127386,2609.9,2609.8,16.975495]
[1749090467377,0.00127386,2609.9,2609.8,14.605252]
[1749090467579,0.00127386,2609.9,2609.8,20.806252]
[1749090471194,8.896e-05,2609.9,2609.8,20.806252]
[1749090481395,8.896e-05,2609.9,2609.8,19.119786]
[1749090481595,1.2812,2610.2,2609.9,5.548799]
[1749090481814,1.2812,2610.2,2610.0,10.0]
[1749090482013,1.2812,2610.2,2609.8,16.053]
[1749090482610,1.2812,2610.2,2610.0,10.0]
[1749090482829,1.2883,2610.5,2610.0,10.0]
[1749090483039,0.46285968,2610.4,2610.0,10.0]
[1749090483413,0.46285968,2610.4,2609.8,16.053]
[1749090484100,0.46285968,2610.4,2609.8,9.853]
[1749090484303,1.2883,2610.3,2609.9,6.2]
[1749090484937,1.2883,2610.3,2609.8,9.853]
[1749090485137,1.2883,2610.3,2609.9,6.2]
[1749090485540,1.2883,2610.3,2609.8,8.258]
[1749090485729,1.2883,2610.1,2610.0,1.595]
[1749090486127,1.8383,2610.1,2610.0,1.595]
[1749090487143,1.8383,2610.1,2610.0,7.795]
[1749090488320,0.02,2609.9,2609.0,3.34029677]
[1749090488622,0.02,2609.9,2609.1,28.111044]
[1749090489542,0.02,2609.9,2609.3,29.474355]
[1749090489744,0.02,2609.9,2609.3,19.474355]
[1749090491134,0.02,2609.9,2609.3,11.8414605]
[1749090491445,0.02,2609.9,2609.3,20.528336]
[1749090491640,0.02,2609.9,2609.3,5.000695]
[1749090491843,0.02,2609.9,2609.4,7.772321]
[1749090492035,1.3309,2609.8,2609.4,6.2]
[1749090492340,0.70958131,2609.8,2609.4,6.2]
[1749090494042,0.70958131,2609.8,2609.3,30.0]
[1749090494247,0.02,2609.9,2609.5,6.2]
[1749090494445,0.02,2609.9,2609.5,6.653]
[1749090494824,0.02,2609.9,2609.7,10.0]
[1749090495019,0.02,2609.9,2609.6,7.711216]
[1749090495209,0.02,2609.9,2609.7,10.0]
[1749090495416,0.02,2609.9,2609.7,9.853]
[1749090496526,0.02,2609.9,2609.7,8.258]
[1749090496728,0.21366,2609.9,2609.8,7.793]
[1749090499453,0.21366,2609.9,2609.7,8.258]
[1749090499629,0.02,2609.9,2609.8,7.793]
[1749090504947,0.02,2609.9,2609.7,8.258]
[1749090505149,0.02,2609.9,2609.8,7.793]
[1749090513684,0.02,2609.9,2609.8,16.051]
[1749090514385,0.02,2609.9,2609.8,8.258]
[1749090514683,0.02,2609.9,2609.8,16.05]
[1749090515285,0.02,2609.9,2609.8,9.852]
[1749090515472,0.02,2609.9,2609.8,16.05]
[1749090516279,0.02,2609.9,2609.8,9.852]
[1749090516483,0.02,2609.9,2609.8,16.05]
[1749090517279,0.02,2609.9,2609.8,9.852]
[1749090517480,0.02,2609.9,2609.8,16.05]
[1749090518903,1.3366,2610.0,2609.8,16.05]
[1749090519111,1.80428968,2610.0,2609.8,16.05]
[1749090520273,2.35428968,2610.0,2609.9,1.594]
[1749090521697,1.8866,2610.0,2609.9,1.594]
[1749090523213,1.3261,2610.3,2609.9,1.594]
[1749090523415,0.55,2610.2,2609.9,1.594]
[1749090524026,0.55,2610.2,2610.0,6.198]
[1749090525220,0.02,2609.9,2609.4,30.0]
[1749090525402,0.02,2609.9,2609.6,3.128909]
[1749090525599,0.02,2609.9,2609.7,10.0]
[1749090525796,0.02,2609.9,2609.5,9.853]
[1749090526426,0.02,2609.9,2609.6,6.198]
[1749090529420,0.02,2609.9,2609.5,9.853]
[1749090529746,0.02,2609.9,2609.7,6.197]
[1749090529943,0.57,2609.9,2609.5,8.259]
[1749090530163,0.57,2609.9,2609.8,7.79]
[1749090530939,0.76705,2609.9,2609.5,8.259]
[1749090531154,0.76705,2609.9,2609.8,7.79]
[1749090531440,0.76705,2609.9,2609.5,8.259]
[1749090531648,0.76705,2609.9,2609.8,7.79]
[1749090532159,0.76705,2609.9,2609.5,8.259]
[1749090532360,3.89029677,2609.7,2609.6,7.79]
[1749090535765,3.89029677,2609.7,2609.6,1.593]
[1749090535966,5.30949677,2609.7,2609.6,1.593]
[1749090536160,5.30949677,2609.7,2609.6,7.79]
[1749090538954,5.30949677,2609.7,2609.6,1.593]
[1749090539201,5.84244645,2609.7,2609.6,1.593]
[1749090540101,5.84244645,2609.7,2609.6,7.79]
[1749090540407,5.84244645,2609.7,2609.6,1.593]
[1749090540555,5.84244645,2609.7,2609.6,7.79]
[1749090542014,5.84244645,2609.7,2608.7,22.630329]
[1749090542187,5.30949677,2609.7,2608.9,22.251781]
[1749090542394,5.30949677,2609.7,2608.7,22.630329]
[1749090542794,5.30949677,2609.7,2608.7,20.956329]
[1749090543294,0.55,2609.4,2608.9,10.0]
[1749090543489,1.8692,2609.4,2609.0,6.197]
[1749090544241,1.8692,2609.4,2609.1,6.197]
[1749090545426,1.8692,2609.4,2609.2,9.853]
[1749090547353,4.55159532,2609.4,2609.3,1.593]
[1749090547546,5.00675485,2609.4,2609.3,1.593]
[1749090548452,4.55159532,2609.4,2609.3,1.593]
[1749090548815,4.55159532,2609.4,2609.3,7.79]
[1749090551271,1.3129,2609.8,2609.3,7.79]
[1749090551484,2.68239532,2609.6,2609.3,7.79]
[1749090552661,1.3129,2609.8,2609.3,7.79]
[1749090552867,0.55,2609.7,2609.4,5.731117]
[1749090553160,0.55,2609.7,2609.5,1.593]
[1749090555368,0.55,2609.7,2609.6,8.26]
[1749090557860,0.55,2609.7,2609.6,16.048]
[1749090558040,1.16792369,2609.7,2609.6,1.592]
[1749090558235,0.09441811,2609.2,2608.6,30.0]
[1749090558438,0.00723605,2609.2,2608.6,30.0]
[1749090559369,0.00723605,2609.2,2608.8,40.0]
[1749090559581,0.00723605,2609.2,2608.8,30.0]
[1749090561182,0.00723605,2609.2,2609.0,3.250734]
[1749090565287,0.00723605,2609.2,2609.1,9.852]
[1749090565591,0.00723605,2609.2,2609.1,13.002835]
[1749090568390,0.00723605,2609.2,2609.1,11.410835]
[1749090568577,0.00058009,2609.2,2609.1,19.198835]
[1749090571693,0.00058009,2609.2,2609.1,19.197835]
[1749090573694,1.4094,2609.5,2609.2,3.303835]
[1749090574190,1.4094,2609.5,2609.2,7.354674]
[1749090574392,1.4094,2609.5,2609.3,10.0]
[1749090574589,1.4094,2609.5,2609.2,3.150835]
[1749090574799,1.4094,2609.5,2609.3,10.0]
[1749090575291,1.4094,2609.5,2609.2,3.150835]
[1749090575501,1.4094,2609.5,2609.3,10.0]
[1749090575796,1.4094,2609.5,2609.4,1.592]
[1749090580612,1.4094,2609.5,2609.4,9.852]
[1749090581373,1.87354758,2609.5,2609.4,16.047]
[1749090585184,0.46414758,2609.5,2609.4,16.047]
[1749090585384,2.68207584,2609.6,2609.4,16.047]
[1749090587315,2.68207584,2609.6,2609.4,9.852]
[1749090587516,1.9854,2609.5,2609.4,8.26]
[1749090587718,1.9854,2609.5,2609.4,16.046]
[1749090587941,1.9854,2609.5,2609.4,16.045]
[1749090588090,2.72035517,2609.5,2609.4,16.045]
[1749090588288,2.72035517,2609.5,2609.4,9.851]
[1749090588514,2.72035517,2609.5,2609.4,1.591]
[1749090589287,6.07497211,2609.5,2609.4,1.591]
[1749090589806,6.07497211,2609.5,2609.4,7.786]
[1749090595529,6.07497211,2609.5,2609.4,16.047]
[1749090597529,4.63957211,2609.5,2609.4,1.591]
[1749090598036,5.98607211,2609.5,2609.4,1.591]
[1749090598635,5.98607211,2609.5,2609.4,7.785]
[1749090599909,0.02,2608.9,2608.0,3.35461694]
[1749090600115,0.02,2608.9,2608.2,22.85655]
[1749090600423,0.02,2608.9,2608.2,17.65655]
[1749090601445,0.02,2608.9,2608.4,23.052041]
[1749090601616,0.02,2608.9,2608.4,13.052041]
[1749090603841,0.02,2608.9,2608.4,11.048869]
[1749090605372,0.02,2608.9,2608.5,9.853]
[1749090605644,0.02,2608.9,2608.8,10.0]
[1749090605843,0.02,2608.9,2608.8,3.913704]
[1749090606043,0.02,2608.9,2608.7,6.368689]
[1749090608110,0.02,2608.9,2608.7,7.884784]
[1749090608369,0.02,2608.9,2608.7,7.189784]
[1749090609014,0.02,2608.9,2608.7,6.552967]
[1749090611752,0.02,2608.9,2608.7,2.666837]
[1749090614607,0.02,2608.9,2608.6,10.0]
[1749090614784,0.02,2608.9,2608.7,6.193]
[1749090615149,0.02,2608.9,2608.8,5.328209]
[1749090615406,0.02,2608.9,2608.8,3.246048]
[1749090617044,0.02,2608.9,2608.6,14.390211]
[1749090617297,0.02,2608.9,2608.7,6.193]
[1749090618143,0.02,2608.9,2608.8,5.970699]
[1749090618347,0.02,2608.9,2608.8,3.068759]
[1749090619491,0.02,2608.9,2608.8,6.193]
[1749090619795,0.02,2608.9,2608.8,9.261759]
[1749090621669,0.02,2608.9,2608.8,1.59]
[1749090621868,0.02,2608.9,2608.8,4.836518]
[1749090622202,0.02,2608.9,2608.8,1.59]
[1749090622897,0.02,2608.9,2608.8,7.782]
[1749090624379,0.02,2608.9,2608.8,15.073726]
[1749090625406,0.02,2608.9,2608.8,23.334726]
[1749090625790,0.02,2608.9,2608.8,21.122586]
[1749090625996,0.02,2608.9,2608.8,18.645986]
[1749090628308,0.02,2608.9,2608.8,23.356]
[1749090628889,0.02,2608.9,2608.8,22.597032]
[1749090630018,0.0014947,2608.9,2608.8,22.597032]
[1749090631282,0.0014947,2608.9,2608.8,9.851]
[1749090631481,0.0014947,2608.9,2608.8,39.851]
[1749090631681,0.0014947,2608.9,2608.8,37.322398]
[1749090631891,0.0014947,2608.9,2608.8,34.847198]
[1749090632096,0.0014947,2608.9,2608.8,24.915669]
[1749090632504,0.0014947,2608.9,2608.8,31.107669]
[1749090635774,0.0014947,2608.9,2608.8,27.065386]
[1749090639883,0.00011843,2608.9,2608.8,27.065386]
[1749090640083,0.00011843,2608.9,2608.8,26.69678]
[1749090640309,0.00011843,2608.9,2608.8,23.65838]
[1749090640513,0.00011843,2608.9,2608.8,23.1386]
[1749090640700,0.00011843,2608.9,2608.8,22.76838]
[1749090641392,0.00011843,2608.9,2608.8,9.101606]
[1749090641587,0.00011843,2608.9,2608.6,10.0]
[1749090641786,0.00011843,2608.9,2608.8,6.19]
[1749090643217,0.00011843,2608.9,2608.8,8.77]
[1749090643421,0.00011843,2608.9,2608.4,30.0]
[1749090643712,0.00011843,2608.9,2608.8,6.19]
[1749090645118,0.00011843,2608.9,2608.8,11.596819]
[1749090645319,0.00011843,2608.9,2608.8,21.445819]
[1749090647425,0.00011843,2608.9,2608.8,18.450813]
[1749090648343,0.00011843,2608.9,2608.8,1.59]
[1749090648630,0.00011843,2608.9,2608.8,12.454427]
[1749090648786,0.00011843,2608.9,2608.8,9.812608]
[1749090649736,0.00011843,2608.9,2608.8,16.002608]
[1749090649913,1.3852,2609.1,2608.8,16.002608]
[1749090650105,1.3852,2609.1,2609.0,10.0]
[1749090650295,1.3852,2609.1,2608.9,5.376321]
[1749090650509,1.3852,2609.1,2609.0,10.0]
[1749090650733,1.3852,2609.1,2608.9,5.376321]
[1749090650949,1.3852,2609.1,2608.8,1.59]
[1749090651133,1.3852,2609.1,2609.0,6.19]
[1749090651941,1.3486,2609.4,2609.0,6.19]
[1749090652236,0.47032169,2609.3,2609.0,6.19]
[1749090655447,0.47032169,2609.3,2609.1,8.261]
[1749090658229,0.47032169,2609.3,2609.2,1.588]
[1749090660953,1.3486,2609.4,2609.2,1.588]
[1749090661247,1.3456,2609.7,2609.3,10.0]
[1749090661434,1.3456,2609.7,2609.2,1.588]
[1749090661832,1.3456,2609.7,2609.3,10.0]
[1749090664038,4.79781694,2609.9,2609.3,10.0]
[1749090664237,1.4432,2609.9,2609.3,30.0]
[1749090665284,0.02,2609.9,2609.3,30.0]
[1749090666371,0.02,2609.9,2609.3,29.230678]
[1749090669276,0.02,2609.9,2609.5,40.0]
[1749090669477,0.02,2609.9,2609.5,30.0]
[1749090675768,0.02,2609.9,2609.6,6.187]
[1749090675973,0.02,2609.9,2609.7,8.766415]
[1749090676169,0.02,2609.9,2609.8,17.588]
[1749090676467,0.02,2609.9,2609.8,1.588]
[1749090679653,0.02,2609.9,2609.7,16.0]
[1749090679856,0.02,2609.9,2609.8,1.588]
[1749090680244,0.02,2609.9,2609.8,7.774]
[1749090684901,0.02,2609.9,2609.8,23.774]
[1749090685789,0.02,2609.9,2609.8,16.0]
[1749090685951,0.02,2609.9,2609.8,23.773]
[1749090687087,0.02,2609.9,2609.8,16.0]
[1749090687298,1.9498,2609.9,2609.8,17.587]
[1749090687584,2.48024169,2609.9,2609.8,23.773]
[1749090690260,2.48024169,2609.9,2609.8,32.032]
[1749090690458,1.9498,2609.9,2609.8,32.032]
[1749090691993,1.3998,2609.9,2609.8,32.032]
[1749090693684,0.02,2609.9,2609.8,32.032]
[1749090694469,0.02,2609.9,2609.8,38.0013]
[1749090697674,0.00167121,2609.9,2609.8,38.0013]
[1749090697885,0.00167121,2609.9,2609.8,38.078]
[1749090707713,0.00014806,2609.9,2609.8,38.078]
[1749090711519,0.00014806,2609.9,2609.8,30.68607297]
[1749090712817,1.3956,2610.6,2609.9,30.0]
[1749090712986,1.3956,2610.6,2610.2,3.35461694]
[1749090713384,1.3956,2610.6,2610.3,30.0]
[1749090713587,1.3956,2610.6,2610.4,1.585]
[1749090715831,1.3956,2610.6,2610.5,8.257]
[1749090721121,1.4096,2610.8,2610.5,8.257]
[1749090724126,0.02,2610.9,2610.5,8.257]
[1749090724333,0.02,2610.9,2610.6,28.28900294]
[1749090724505,0.02,2610.9,2610.5,8.257]
[1749090724506,0.02,2610.9,2610.8,22.04642494]
[1749090725033,0.02,2610.9,2610.8,17.55733094]
[1749090725810,0.02,2610.9,2610.8,14.33382894]
[1749090729548,0.02,2610.9,2610.8,10.0]
[1749090729748,0.02,2610.9,2610.8,7.766]
[1749090729957,0.02,2610.9,2610.8,24.924301]
[1749090731242,0.02,2610.9,2610.8,22.617428]
[1749090731433,0.02,2610.9,2610.8,20.40054]
[1749090733531,0.02,2610.9,2610.8,23.75515694]
[1749090735445,0.02,2610.9,2610.8,23.83915694]
[1749090735751,0.00199127,2610.9,2610.8,23.83915694]
[1749090736340,0.00199127,2610.9,2610.8,25.60877388]
[1749090742864,0.00199127,2610.9,2610.8,22.25415694]
[1749090743843,0.00199127,2610.9,2610.8,7.53877918]
[1749090744850,0.00199127,2610.9,2610.8,10.89339612]
[1749090745056,0.00199127,2610.9,2610.8,17.07139612]
[1749090745260,0.00199127,2610.9,2610.8,20.37239612]
[1749090745550,0.00199127,2610.9,2610.8,30.20839612]
[1749090745757,0.00021733,2610.9,2610.8,23.55277918]
[1749090745955,0.00021733,2610.9,2610.8,14.02016224]
[1749090746259,0.00021733,2610.9,2610.8,23.55277918]
[1749090746857,0.00021733,2610.9,2610.8,15.29977918]
[1749090748864,0.00021733,2610.9,2610.8,13.71677918]
[1749090749365,0.00021733,2610.9,2610.8,2.736932]
[1749090749665,0.00021733,2610.9,2610.3,0.1179]
[1749090749830,1.4939,2610.8,2610.5,10.461394]
[1749090750160,1.4939,2610.8,2610.7,10.0]
[1749090750320,1.4939,2610.8,2610.6,6.178]
[1749090751465,1.4939,2610.8,2610.7,6.178]
[1749090752235,1.4939,2610.8,2610.1,3.35461694]
[1749090752534,1.4939,2610.8,2610.4,10.0]
[1749090752735,1.4939,2610.8,2610.5,6.178]
[1749090752934,1.4939,2610.8,2610.1,3.35461694]
[1749090753130,1.4939,2610.8,2610.6,6.178]
[1749090754574,1.4417,2610.6,2609.9,8.820469]
[1749090754771,1.4417,2610.6,2610.1,7.046869]
[1749090754943,1.4417,2610.6,2610.2,10.0]
[1749090755150,1.4417,2610.6,2610.4,10.0]
[1749090755364,1.4417,2610.6,2610.5,16.018]
[1749090759408,1.4417,2610.6,2610.5,20.1233]
[1749090759677,1.4417,2610.6,2610.5,16.018]
[1749090760668,1.4417,2610.6,2610.5,9.839]
[1749090760847,1.4417,2610.6,2610.5,16.018]
[1749090772779,1.5116,2610.8,2610.5,16.018]
[1749090772980,0.00021733,2610.9,2610.7,6.916068]
[1749090773189,0.00021733,2610.9,2610.8,3.35461694]
[1749090773980,0.00021733,2610.9,2610.7,10.756637]
[1749090774284,0.00021733,2610.9,2610.7,10.504967]
[1749090778083,0.00021733,2610.9,2610.8,10.0]
[1749090778682,0.00021733,2610.9,2610.7,19.768729]
[1749090778883,0.00021733,2610.9,2610.7,9.768729]
[1749090779424,0.00021733,2610.9,2610.8,10.0]
[1749090779626,0.00021733,2610.9,2610.7,22.568729]
[1749090779820,0.00021733,2610.9,2610.7,12.568729]
[1749090779980,0.00021733,2610.9,2610.8,3.35461694]
[1749090782327,0.00021733,2610.9,2610.8,26.90210294]
[1749090783788,0.00021733,2610.9,2610.8,27.02480294]
[1749090783987,1.3864,2611.6,2610.9,16.0]
[1749090784300,1.3864,2611.6,2611.4,16.0]
[1749090784502,1.3864,2611.6,2611.5,23.762]
[1749090788142,1.3864,2611.6,2611.5,32.017]
[1749090788504,1.3864,2611.6,2611.5,25.838]
[1749090788704,1.3864,2611.6,2611.5,32.016]
[1749090789406,1.3864,2611.6,2611.5,24.255]
[1749090789607,1.3864,2611.6,2611.5,32.016]
[1749090798131,1.3864,2611.6,2611.5,25.838]
[1749090798432,1.3864,2611.6,2611.5,32.015]
[1749090800157,1.3864,2611.6,2611.5,23.24025951]
[1749090800455,1.3864,2611.6,2611.5,16.015]
[1749090800617,1.4436,2611.8,2611.5,1.583]
[1749090801855,1.4436,2611.8,2611.6,6.177]
[1749090802161,0.02,2611.9,2611.7,16.0]
[1749090805358,0.02,2611.9,2611.8,9.836]
[1749090807462,1.3558,2611.9,2611.8,8.254]
[1749090807664,1.3558,2611.9,2611.8,16.012]
[1749090808121,1.3558,2611.9,2611.8,9.836]
[1749090808318,1.3558,2611.9,2611.8,8.254]
[1749090808650,1.3558,2611.9,2611.8,16.012]
[1749090812153,5.26041694,2611.9,2611.8,9.836]
[1749090812470,1.9058,2611.9,2611.8,16.012]
[1749090812633,2.43184169,2611.9,2611.8,16.012]
[1749090813170,1.9058,2611.9,2611.8,16.012]
[1749090813569,1.3558,2611.9,2611.8,16.012]
[1749090813727,0.02,2611.9,2611.8,16.012]
[1749090822578,0.02,2611.9,2611.8,32.602849]
[1749090822759,0.00212648,2611.9,2611.8,32.602849]
[1749090823353,0.00212648,2611.9,2611.8,24.52397]
[1749090823541,0.00212648,2611.9,2611.8,22.012926]
[1749090824882,0.00212648,2611.9,2611.8,20.499537]
[1749090828550,0.00212648,2611.9,2611.8,19.520163]
[1749090828754,0.00212648,2611.9,2611.8,16.012]
[1749090828956,0.00212648,2611.9,2611.8,21.761706]
[1749090830461,4.026,2613.9,2612.4,40.0]
[1749090830676,1.21779038,2615.7,2612.7,0.55]
[1749090830986,0.57056075,2616.6,2615.8,30.0]
[1749090831205,0.57056075,2616.6,2616.0,43.33466191]
[1749090831206,0.60869867,2616.3,2616.0,43.33466191]
[1749090831406,0.36520323,2616.5,2616.3,10.0]
[1749090831697,0.36520323,2616.5,2615.9,7.99325851]
[1749090831698,0.01251846,2617.0,2616.9,32.01496495]
[1749090831876,0.02,2617.9,2617.5,30.0]
[1749090832046,0.02,2617.9,2617.5,42.09580848]
[1749090832245,0.35286249,2617.6,2617.5,42.09580848]
[1749090832480,0.35286249,2617.6,2617.5,40.46066191]
[1749090832682,0.15415417,2617.6,2617.5,40.46066191]
[1749090832883,0.02,2617.9,2617.5,40.85059797]
[1749090833090,0.02,2617.9,2617.8,33.33466191]
[1749090833302,0.02,2617.9,2617.8,36.9235847]
[1749090833792,1.02771417,2618.8,2618.4,10.0]
[1749090833988,1.02771417,2618.8,2618.5,0.35180802]
[1749090834285,0.005,2619.5,2618.6,0.70589877]
[1749090834511,0.005,2619.5,2618.7,7.88189877]
[1749090834689,0.005,2619.5,2618.8,0.35180802]
[1749090834985,0.005,2619.5,2618.7,7.176]
[1749090835185,0.005,2619.5,2618.8,0.35274715]
[1749090835387,0.005,2619.5,2618.8,10.393]
[1749090835586,0.005,2619.5,2618.8,10.73593072]
[1749090835797,0.005,2619.5,2618.8,15.4103146]
[1749090835948,0.005,2619.5,2618.8,14.23173084]
[1749090836152,0.005,2619.5,2618.8,8.93944871]
[1749090836391,0.005,2619.5,2618.8,17.96482487]
[1749090836693,0.005,2619.5,2618.8,17.96205763]
[1749090836888,1.5013,2619.4,2618.8,17.622]
[1749090837250,1.5013,2619.4,2618.8,17.613]
[1749090837450,1.5013,2619.4,2618.8,17.95305617]
[1749090837765,1.32232187,2619.4,2618.8,22.70648417]
[1749090837963,1.32232187,2619.4,2618.9,0.34005617]
[1749090838182,1.32232187,2619.4,2618.8,17.613]
[1749090838424,1.32232187,2619.4,2618.9,0.34005699]
[1749090838725,1.32232187,2619.4,2618.8,17.613]
[1749090839077,1.32232187,2619.4,2618.9,0.34005286]
[1749090839282,1.32232187,2619.4,2619.0,9.348]
[1749090840121,0.55,2619.3,2618.8,8.245]
[1749090840423,0.55,2619.3,2618.9,9.34]
[1749090840626,0.55,2619.3,2619.0,7.192]
[1749090841420,0.55,2619.3,2618.9,9.333]
[1749090841724,1.32232187,2619.4,2618.9,9.333]
[1749090842202,0.005,2619.5,2618.9,9.333]
[1749090842408,0.005,2619.5,2619.0,8.782584]
[1749090842717,0.005,2619.5,2619.1,10.0]
[1749090842882,0.005,2619.5,2619.2,2.146]
[1749090843081,0.005,2619.5,2619.3,7.175]
[1749090844182,0.005,2619.5,2619.4,7.165]
[1749090844378,0.005,2619.5,2619.4,9.311]
[1749090844825,0.005,2619.5,2619.4,25.311]
[1749090847327,0.005,2619.5,2619.4,25.64966859]
[1749090847533,0.005,2619.5,2619.4,25.64966166]
[1749090847737,0.005,2619.5,2619.4,25.64999805]
[1749090847950,0.005,2619.5,2619.4,25.311]
[1749090849244,0.005,2619.5,2619.4,25.64994251]
[1749090849417,0.005,2619.5,2619.4,25.65086361]
[1749090849727,0.005,2619.5,2619.4,25.311]
[1749090850249,0.005,2619.5,2619.4,25.65081447]
[1749090850392,0.005,2619.5,2619.4,25.311]
[1749090850894,0.005,2619.5,2619.4,25.6507832]
[1749090851092,0.005,2619.5,2619.4,25.311]
[1749090851292,0.005,2619.5,2619.4,45.46956275]
[1749090851493,0.02,2619.9,2619.4,17.888982]
[1749090851741,0.02,2619.9,2619.5,16.33964668]
[1749090851950,0.02,2619.9,2619.7,2.791306]
[1749090852198,0.02,2619.9,2619.8,20.816231]
[1749090852496,0.02,2619.9,2619.8,23.122]
[1749090852949,0.02,2619.9,2619.8,23.80594743]
[1749090853249,0.02,2619.9,2619.8,29.27080638]
[1749090853428,0.02,2619.9,2619.8,28.12359283]
[1749090853754,0.02,2619.9,2619.8,25.176865]
[1749090854102,0.02,2619.9,2619.8,25.38201754]
[1749090854319,0.02,2619.9,2619.8,25.176865]
[1749090854547,0.02,2619.9,2619.8,2.144]
[1749090854717,1.3966,2620.1,2619.8,9.9400336]
[1749090854922,1.3966,2620.1,2619.9,0.6840336]
[1749090855247,0.005,2620.3,2619.9,16.0]
[1749090856059,0.005,2620.3,2620.0,0.34962114]
[1749090856237,0.005,2620.3,2620.1,0.68463636]
[1749090856403,1.83e-06,2620.9,2620.3,16.0]
[1749090856608,7.91223405,2621.5,2620.4,0.68461992]
[1749090856855,7.91223405,2621.5,2620.5,2.48631837]
[1749090857033,0.55,2621.1,2620.6,9.59371049]
[1749090857259,0.55,2621.1,2620.7,16.34975382]
[1749090857466,0.55,2621.1,2620.6,2.144]
[1749090857658,0.55,2621.1,2620.9,16.0]
[1749090857861,0.55,2620.9,2620.2,8.23]
[1749090858066,0.20069,2620.8,2620.3,9.58943616]
[1749090858271,0.20069,2620.8,2620.4,10.28602794]
[1749090858438,0.20069,2620.8,2620.5,0.70245979]
[1749090858640,0.20069,2620.8,2620.6,0.70248545]